bitfinex-derivatives/quotes_ETHF0:USTF0_20240924
["timestamp","ask_amount","ask_price","bid_price","bid_amount"]
[1727158378166,1.37137667,2637.5,2637.3,0.75]
[1727158378167,0.99221667,2637.5,2637.3,0.75]
[1727158378368,0.99221667,2637.5,2637.3,1.1468]
[1727158378369,1.23,2637.4,2637.3,1.1468]
[1727158380676,2.22221667,2637.4,2637.3,1.1468]
[1727158381569,1.23,2637.4,2637.3,1.1468]
[1727158382076,2.71989531,2637.4,2637.3,1.1468]
[1727158382782,3.09907531,2637.4,2637.3,1.1468]
[1727158382969,1.60918,2637.4,2637.3,1.1468]
[1727158383174,1.60918,2637.4,2637.3,0.7602]
[1727158383475,1.23,2637.4,2637.3,0.7602]
[1727158383676,1.60918,2637.4,2637.3,0.7602]
[1727158383873,2.72101972,2637.4,2637.3,0.7602]
[1727158384177,1.23,2637.4,2637.3,0.7602]
[1727158385685,2.72094177,2637.4,2637.3,0.7602]
[1727158389192,1.23,2637.4,2637.3,0.7602]
[1727158389584,2.72078132,2637.4,2637.3,0.7602]
[1727158389780,1.60918,2637.4,2637.3,0.7602]
[1727158390085,3.09993684,2637.4,2637.3,0.7602]
[1727158391486,2.72075684,2637.4,2637.1,0.3986]
[1727158391690,1.9924222,2637.5,2637.1,0.3986]
[1727158391691,2.22382317,2637.2,2637.1,0.7848]
[1727158391886,2.60302317,2637.2,2637.1,0.7848]
[1727158392085,2.60302317,2637.2,2637.1,4.90791854]
[1727158392983,1.6092,2637.2,2637.1,4.90791854]
[1727158393192,2.72075684,2637.2,2637.1,4.90791854]
[1727158393391,2.60304625,2637.2,2637.1,4.90791854]
[1727158393576,1.6092,2637.2,2637.1,4.90791854]
[1727158394688,2.60306205,2637.2,2637.1,4.90791854]
[1727158395191,1.6092,2637.2,2637.1,4.90791854]
[1727158395883,2.24015684,2637.3,2637.1,4.90791854]
[1727158396082,0.99391243,2637.2,2637.1,4.90791854]
[1727158396281,1.37311243,2637.2,2637.1,4.90791854]
[1727158397591,1.86995684,2637.2,2637.1,4.90791854]
[1727158399184,0.37922,2637.1,2637.0,0.3786]
[1727158399390,3.10025874,2637.1,2637.0,0.3786]
[1727158400386,2.72103874,2637.1,2637.0,0.3786]
[1727158400599,3.10025874,2637.1,2637.0,0.3786]
[1727158404791,2.72103874,2637.1,2637.0,0.3786]
[1727158404986,3.10025874,2637.1,2637.0,0.3786]
[1727158405893,1.49103874,2637.1,2637.0,0.3786]
[1727158406095,1.49103874,2637.1,2637.0,4.45924566]
[1727158406293,1.87025874,2637.1,2637.0,4.45924566]
[1727158406498,3.10025874,2637.1,2637.0,4.45924566]
[1727158409797,1.60922,2637.1,2637.0,4.45924566]
[1727158410000,3.10069206,2637.1,2637.0,4.45924566]
[1727158410594,1.60922,2637.1,2637.0,4.45924566]
[1727158412104,1.23,2637.1,2637.0,4.45924566]
[1727158412301,3.10082327,2637.1,2637.0,4.45924566]
[1727158412698,2.72160327,2637.1,2637.0,4.45924566]
[1727158415008,1.49160327,2637.1,2637.0,4.45924566]
[1727158419812,1.49160327,2637.1,2637.0,4.83847566]
[1727158420808,1.49160327,2637.1,2637.0,5.82463818]
[1727158421299,2.72160327,2637.2,2637.0,5.82463818]
[1727158421503,2.72160327,2637.2,2637.1,0.3695]
[1727158422010,1.49160327,2637.2,2637.1,4.72922348]
[1727158423300,1.49160327,2637.2,2637.1,5.10844348]
[1727158423505,1.49160327,2637.2,2637.1,5.715386]
[1727158424208,1.49160327,2637.2,2637.1,6.094606]
[1727158424410,1.49160327,2637.2,2637.1,5.715386]
[1727158428309,1.49160327,2637.2,2637.1,6.23321432]
[1727158428610,1.49160327,2637.2,2637.1,5.715386]
[1727158430913,1.49160327,2637.2,2637.1,7.41362724]
[1727158431116,1.49160327,2637.2,2637.1,7.88787415]
[1727158431416,1.49160327,2637.2,2637.1,6.23329749]
[1727158431712,1.49160327,2637.2,2637.1,5.715386]
[1727158431921,1.49160327,2637.2,2637.1,7.88803501]
[1727158432119,1.49160327,2637.2,2637.1,6.89589053]
[1727158432312,1.49160327,2637.2,2637.1,6.23327542]
[1727158432508,1.49160327,2637.2,2637.1,5.715386]
[1727158432715,1.49160327,2637.2,2637.1,6.1896368]
[1727158433107,1.49160327,2637.2,2637.1,5.715386]
[1727158433314,1.49160327,2637.2,2637.1,6.23335914]
[1727158433713,1.49160327,2637.2,2637.1,5.715386]
[1727158434517,1.49160327,2637.2,2637.1,7.88833069]
[1727158434817,1.49160327,2637.2,2637.1,6.23338717]
[1727158435021,1.49160327,2637.2,2637.1,6.23339251]
[1727158435223,2.3716122,2637.3,2637.1,5.715386]
[1727158436327,1.49244426,2637.2,2637.1,5.715386]
[1727158436515,3.6016122,2637.3,2637.1,6.23341128]
[1727158436825,3.6016122,2637.3,2637.1,5.715386]
[1727158437121,1.49247633,2637.2,2637.1,5.715386]
[1727158437319,3.6016122,2637.3,2637.1,6.23341469]
[1727158437521,3.6016122,2637.3,2637.1,5.715386]
[1727158439126,1.9924222,2637.2,2637.1,5.345886]
[1727158439418,3.6016122,2637.3,2637.1,5.345886]
[1727158440128,3.2224222,2637.3,2637.2,0.3808]
[1727158440730,0.77578,2637.4,2637.2,5.38709434]
[1727158440731,2.3890222,2637.4,2637.2,5.38709434]
[1727158440924,2.3890222,2637.4,2637.2,5.76629434]
[1727158441126,1.9924222,2637.4,2637.2,5.76629434]
[1727158441327,1.9924222,2637.4,2637.3,0.3812]
[1727158441726,1.9924222,2637.4,2637.3,4.62333727]
[1727158443927,3.2224222,2637.5,2637.3,4.62333727]
[1727158444330,3.2224222,2637.5,2637.4,0.3651]
[1727158444826,1.9924222,2637.5,2637.4,0.3651]
[1727158445233,3.2224222,2637.5,2637.4,0.3651]
[1727158447327,1.9924222,2637.5,2637.4,0.3651]
[1727158447533,0.99457292,2637.5,2637.4,5.89284442]
[1727158447728,0.99457292,2637.5,2637.4,7.86563782]
[1727158447923,0.99457292,2637.5,2637.4,7.89387758]
[1727158448230,0.99457292,2637.5,2637.4,8.47810598]
[1727158448426,0.99457292,2637.5,2637.4,6.50530866]
[1727158448633,0.99457292,2637.5,2637.4,7.49482965]
[1727158449132,0.99457292,2637.5,2637.4,6.50528263]
[1727158449328,0.99457292,2637.5,2637.4,6.88446263]
[1727158449528,0.99457292,2637.6,2637.4,6.50528263]
[1727158449734,0.99457292,2637.6,2637.5,0.98935423]
[1727158449937,0.99457292,2637.6,2637.5,0.3611]
[1727158450126,0.99457292,2637.6,2637.5,4.43456699]
[1727158450736,0.99457292,2637.7,2637.5,10.58592978]
[1727158450934,0.99457292,2637.7,2637.6,0.98910067]
[1727158451238,0.99457292,2637.8,2637.6,5.02287297]
[1727158451626,0.99457292,2637.8,2637.7,0.3713]
[1727158452030,0.99457292,2637.8,2637.7,4.68494242]
[1727158452530,1.23,2637.8,2637.7,4.68494242]
[1727158453434,2.22457292,2637.8,2637.7,4.68494242]
[1727158453639,1.23,2637.8,2637.7,4.68494242]
[1727158454027,2.22457292,2637.8,2637.7,4.68494242]
[1727158454537,1.23,2637.8,2637.7,4.68494242]
[1727158455836,0.99457292,2638.0,2637.7,4.68494242]
[1727158456031,3.0,2638.1,2638.0,0.37909]
[1727158456238,3.0,2638.1,2638.0,7.37729]
[1727158456433,3.0,2638.1,2638.0,53.30126692]
[1727158456633,3.0,2638.1,2638.0,52.31216625]
[1727158456836,3.0,2638.1,2638.0,53.30126692]
[1727158458035,3.0,2638.1,2638.0,54.3348865]
[1727158458341,3.0,2638.1,2638.0,53.30301598]
[1727158458728,1.2015,2638.1,2638.0,62.52656611]
[1727158458934,0.602,2638.1,2638.0,63.71244381]
[1727158459136,0.602,2638.1,2638.0,62.72334314]
[1727158459641,0.602,2638.1,2638.0,61.56119684]
[1727158459841,0.602,2638.1,2638.0,62.03522692]
[1727158460147,0.3722,2638.7,2638.0,59.67988018]
[1727158460148,0.99457292,2638.7,2638.0,59.67988018]
[1727158460438,0.7333,2638.5,2638.1,2.861]
[1727158460839,0.7333,2638.5,2638.2,4.251578]
[1727158461440,0.7333,2638.5,2638.3,0.37904]
[1727158461642,0.7333,2638.5,2638.2,4.251578]
[1727158461643,0.7333,2638.5,2638.4,0.37903]
[1727158461844,0.7333,2638.5,2638.4,4.12312048]
[1727158462038,0.7333,2638.5,2638.3,0.74664]
[1727158462338,0.7333,2638.5,2638.4,4.12312048]
[1727158463739,1.23,2638.6,2638.4,4.12312048]
[1727158464439,0.3647,2638.5,2638.4,5.73215048]
[1727158464639,0.7707,2638.8,2638.5,0.37901]
[1727158464837,1.1392,2638.8,2638.5,0.37901]
[1727158465146,1.1392,2638.8,2638.6,5.01629556]
[1727158465341,1.1392,2638.8,2638.6,4.63729556]
[1727158465548,1.1392,2638.8,2638.6,0.7489]
[1727158465849,1.1392,2638.8,2638.7,4.38657986]
[1727158467044,0.379,2638.6,2638.3,3.2078]
[1727158467346,1.23,2638.4,2638.3,3.2078]
[1727158467749,1.23,2638.4,2638.3,7.15270956]
[1727158467947,1.9686,2638.4,2638.3,7.15270956]
[1727158468452,2.34763,2638.4,2638.3,7.15270956]
[1727158468747,2.34763,2638.4,2638.3,3.94490956]
[1727158469150,2.34763,2638.4,2638.1,3.96984746]
[1727158469451,1.23,2638.3,2638.0,43.657]
[1727158469649,1.23,2638.3,2638.1,3.96995659]
[1727158469851,0.3969,2638.2,2638.1,3.96995659]
[1727158470447,0.3969,2638.2,2638.1,4.34902659]
[1727158470640,0.3969,2638.2,2638.1,3.96995659]
[1727158474054,0.3969,2638.2,2638.1,4.34902659]
[1727158475657,0.3969,2638.2,2638.1,3.96995659]
[1727158476855,0.3969,2638.2,2638.1,4.34902659]
[1727158477556,0.7386,2638.4,2638.2,0.37906]
[1727158477853,0.7386,2638.4,2638.3,4.60544713]
[1727158489764,0.7386,2638.4,2638.3,4.98449713]
[1727158489970,0.7386,2638.4,2638.3,4.60544713]
[1727158499475,0.7386,2638.4,2638.3,5.12285162]
[1727158499672,0.7386,2638.4,2638.3,5.59124283]
[1727158499885,0.7386,2638.4,2638.3,6.10865884]
[1727158500096,0.7386,2638.4,2638.3,6.5826945]
[1727158500379,0.7386,2638.4,2638.3,6.06527849]
[1727158500691,1.73317292,2638.4,2638.3,7.05673646]
[1727158501384,1.73317292,2638.4,2638.3,7.53077574]
[1727158501580,0.7386,2638.4,2638.3,8.72047443]
[1727158501785,1.732841,2638.4,2638.3,9.21827191]
[1727158501984,1.732841,2638.4,2638.3,9.59732191]
[1727158502182,1.732841,2638.4,2638.3,9.6127867]
[1727158502382,1.732841,2638.4,2638.3,10.08681388]
[1727158502686,0.994241,2638.4,2638.3,10.08681388]
[1727158502886,1.355541,2638.4,2638.3,10.08681388]
[1727158505178,1.355541,2638.4,2638.3,9.59748458]
[1727158505389,1.355541,2638.4,2638.3,9.1234574]
[1727158505691,1.355541,2638.4,2638.3,9.61285813]
[1727158506085,1.355541,2638.4,2638.3,10.08688919]
[1727158506391,1.355541,2638.4,2638.3,10.08708209]
[1727158506584,1.355541,2638.4,2638.3,9.70803209]
[1727158506776,1.85325402,2638.4,2638.3,8.72468255]
[1727158507187,0.3613,2638.4,2638.3,7.73503818]
[1727158507390,1.85325402,2638.4,2638.3,8.7244731]
[1727158509097,1.85325402,2638.4,2638.3,8.25037623]
[1727158509294,12.97027402,2638.4,2638.3,5.68776252]
[1727158509589,12.97027402,2638.4,2637.9,0.60127973]
[1727158509590,0.37909,2638.0,2637.9,0.60127973]
[1727158509786,0.99434592,2638.2,2638.0,0.37909]
[1727158509985,2.22434592,2638.3,2638.1,47.5165305]
[1727158510190,0.99434592,2638.2,2638.1,43.00048096]
[1727158510489,0.99434592,2638.2,2638.1,49.50081564]
[1727158510991,2.72151888,2638.3,2638.1,49.48548247]
[1727158511199,1.49151888,2638.2,2638.1,45.82170443]
[1727158511394,2.72151888,2638.3,2638.1,49.97794487]
[1727158511583,1.49151888,2638.2,2638.1,47.30578539]
[1727158511783,1.49151888,2638.2,2638.1,48.14223165]
[1727158511784,2.72151888,2638.2,2638.1,48.14223165]
[1727158511983,3.21903756,2638.2,2638.1,45.10530443]
[1727158512186,3.21903756,2638.2,2638.1,45.57938937]
[1727158512389,7.00943756,2638.2,2638.1,4.77938937]
[1727158512586,7.00943756,2638.2,2637.9,6.32055697]
[1727158512786,1.88533656,2638.1,2638.0,2.18328805]
[1727158513088,1.88533656,2638.1,2638.0,41.99137711]
[1727158513291,5.67573656,2638.1,2638.0,40.8]
[1727158514497,1.88533656,2638.1,2638.0,40.8]
[1727158514899,5.67573656,2638.1,2638.0,40.8]
[1727158515095,1.88533656,2638.1,2638.0,40.8]
[1727158516593,2.26440656,2638.1,2638.0,40.8]
[1727158516895,6.05480656,2638.1,2638.0,40.8]
[1727158517095,2.26440656,2638.1,2638.0,40.8]
[1727158517599,1.88533656,2638.1,2638.0,40.8]
[1727158517796,2.26440656,2638.1,2638.0,40.8]
[1727158518186,1.88533656,2638.1,2638.0,40.8]
[1727158518987,2.26440656,2638.1,2638.0,40.8]
[1727158519185,3.49440656,2638.1,2638.0,40.8]
[1727158519890,2.9964715,2638.1,2638.0,40.8]
[1727158520090,3.49440656,2638.1,2638.0,40.8]
[1727158520895,3.49440656,2638.1,2637.8,1.48408096]
[1727158521198,1.38646419,2638.0,2637.8,1.48408096]
[1727158521389,0.3789,2637.9,2637.8,1.48408096]
[1727158521590,0.3789,2637.9,2637.8,3.68097701]
[1727158521989,0.3789,2637.9,2637.8,44.48097701]
[1727158522696,0.3789,2637.9,2637.8,44.95508571]
[1727158522900,0.3789,2637.9,2637.8,44.95494356]
[1727158523387,0.3789,2637.9,2637.8,44.95491311]
[1727158524083,0.3789,2637.9,2637.8,44.46601612]
[1727158525492,0.3789,2637.9,2637.8,43.27557039]
[1727158525693,0.3789,2637.9,2637.8,46.18943044]
[1727158526196,0.3789,2637.9,2637.8,46.1894365]
[1727158527900,0.3789,2637.9,2637.8,44.0078]
[1727158528603,0.3789,2637.9,2637.8,40.8]
[1727158529103,0.3789,2637.9,2637.8,41.99013861]
[1727158529403,0.3789,2637.9,2637.8,42.36925861]
[1727158529699,0.3925,2638.0,2637.8,41.99013861]
[1727158529902,0.3925,2638.0,2637.8,40.8]
[1727158530108,0.3925,2638.0,2637.9,0.3598]
[1727158530299,1.38646419,2638.0,2637.9,0.3598]
[1727158531005,1.76555419,2638.0,2637.9,0.3598]
[1727158531307,6.66960075,2638.0,2637.6,1.48408096]
[1727158531507,6.66960075,2638.0,2637.6,0.3598]
[1727158531508,1.23,2637.7,2637.6,0.3598]
[1727158531704,1.23,2637.7,2637.6,0.83395251]
[1727158532006,1.60913,2637.7,2637.6,45.49835147]
[1727158532209,2.60261554,2637.7,2637.6,45.49835147]
[1727158532704,2.96431554,2637.7,2637.6,45.49835147]
[1727158533109,2.58518554,2637.7,2637.6,45.49835147]
[1727158533307,1.5917,2637.7,2637.6,45.49835147]
[1727158533499,1.97083,2637.7,2637.6,45.49835147]
[1727158533694,2.96431554,2637.7,2637.6,45.49835147]
[1727158534108,1.97083,2637.7,2637.6,45.49835147]
[1727158535303,1.97083,2637.7,2637.6,41.1598]
[1727158536101,1.60913,2637.7,2637.6,41.1598]
[1727158536304,1.49193656,2637.9,2637.6,41.53894]
[1727158536305,2.22348554,2637.9,2637.6,41.53894]
[1727158536602,2.22348554,2637.9,2637.7,0.3639]
[1727158536815,2.60259554,2637.9,2637.7,0.3639]
[1727158537110,2.22348554,2637.9,2637.7,0.3639]
[1727158537300,0.3733,2637.8,2637.7,0.3639]
[1727158540114,0.75242,2637.8,2637.7,0.3639]
[1727158540310,0.3733,2637.8,2637.7,0.3639]
[1727158540501,0.3733,2637.8,2637.6,41.1598]
[1727158540701,1.23,2637.7,2637.6,41.1598]
[1727158543207,6.51313656,2637.7,2637.0,1.48408096]
[1727158543403,1.23,2637.4,2637.3,0.3809]
[1727158543609,1.23,2637.4,2637.3,45.22667213]
[1727158543906,1.73824556,2637.6,2637.4,0.37917]
[1727158543907,1.5965,2637.6,2637.4,0.37917]
[1727158544107,1.23,2637.6,2637.5,0.37916]
[1727158544313,1.23,2637.6,2637.5,4.54895372]
[1727158544612,1.36589556,2637.8,2637.5,4.54895372]
[1727158544613,1.23,2637.7,2637.5,4.54895372]
[1727158545007,1.23,2637.7,2637.6,0.3895]
[1727158545210,1.36589556,2637.8,2637.6,0.3895]
[1727158545211,1.74501556,2637.8,2637.6,0.3895]
[1727158545404,1.23,2637.7,2637.6,0.3895]
[1727158546614,2.22259556,2637.7,2637.6,0.3895]
[1727158547408,1.23,2637.7,2637.6,0.3895]
[1727158548611,2.60172556,2637.7,2637.6,0.3895]
[1727158548812,2.60172556,2637.7,2637.3,41.56008]
[1727158549012,1.23,2637.5,2637.4,0.3912]
[1727158549305,1.23,2637.5,2637.4,4.44763799]
[1727158549511,1.23,2637.5,2637.4,4.82681799]
[1727158551820,0.3865,2637.6,2637.4,4.82681799]
[1727158554922,0.3865,2637.6,2637.4,4.44763799]
[1727158555215,0.3865,2637.6,2637.4,4.82680799]
[1727158556319,1.23,2637.5,2637.4,4.44763799]
[1727158556524,1.9854,2637.5,2637.4,4.44763799]
[1727158557519,2.36456,2637.5,2637.4,0.3912]
[1727158557820,3.35716556,2637.5,2637.3,40.8]
[1727158558014,2.97799556,2637.5,2637.4,0.3838]
[1727158558817,3.35715556,2637.5,2637.4,0.3838]
[1727158566127,0.99259556,2637.5,2637.4,0.76298]
[1727158566719,1.37909556,2637.6,2637.4,0.76298]
[1727158567116,1.37909556,2637.6,2637.4,0.3838]
[1727158567621,1.75824556,2637.6,2637.4,0.3838]
[1727158567924,0.99259556,2637.5,2637.4,0.3838]
[1727158569438,2.22259556,2637.5,2637.4,0.3838]
[1727158569921,2.98305556,2637.5,2637.4,0.3838]
[1727158570130,2.60389556,2637.5,2637.4,0.3838]
[1727158570429,1.99046,2637.5,2637.4,0.3838]
[1727158571122,1.6113,2637.5,2637.4,0.3838]
[1727158571831,2.60506311,2637.5,2637.4,0.3838]
[1727158572126,2.98422311,2637.5,2637.4,0.3838]
[1727158572527,3.48239656,2637.5,2637.4,0.3838]
[1727158572831,0.37918,2637.4,2637.3,40.8]
[1727158573131,2.26801656,2637.4,2637.3,40.8]
[1727158574430,1.7701564,2637.4,2637.3,40.8]
[1727158575230,0.77608,2637.4,2637.3,40.8]
[1727158576131,3.71306756,2637.4,2637.3,40.8]
[1727158576430,1.72403,2637.4,2637.3,40.8]
[1727158576630,0.37921,2637.2,2636.9,1.48408096]
[1727158576825,0.37921,2637.2,2636.9,2.25733096]
[1727158576826,1.23,2637.0,2636.9,2.25733096]
[1727158577031,2.14029733,2637.1,2636.9,2.25733096]
[1727158577032,2.61879733,2637.1,2637.0,4.24390803]
[1727158577232,2.61879733,2637.1,2637.0,6.92301101]
[1727158577233,1.6245,2637.1,2637.0,6.92301101]
[1727158577433,1.6245,2637.1,2637.0,2.67910298]
[1727158577731,2.61879733,2637.1,2637.0,2.09229822]
[1727158578336,1.6245,2637.1,2637.0,2.56656323]
[1727158578831,2.61879733,2637.1,2637.0,1.19502202]
[1727158579428,1.6245,2637.1,2637.0,1.19502202]
[1727158579635,1.6245,2637.1,2637.0,1.19482646]
[1727158580023,2.00372,2637.1,2637.0,1.19482646]
[1727158580228,2.99801733,2637.1,2636.9,41.194]
[1727158580424,1.5981,2637.0,2636.9,41.194]
[1727158580629,1.5981,2637.0,2636.9,42.38882453]
[1727158581038,1.5981,2637.0,2636.9,41.194]
[1727158581834,6.76362733,2637.0,2636.9,40.8]
[1727158582131,7.653676,2637.0,2636.7,0.37927]
[1727158582328,0.99408392,2636.9,2636.7,0.37927]
[1727158582534,0.99408392,2636.9,2636.7,41.17927]
[1727158582932,0.99408392,2636.9,2636.7,40.8]
[1727158583330,1.37333392,2636.9,2636.7,40.8]
[1727158584526,1.23,2636.8,2636.7,40.8]
[1727158588633,1.23,2636.8,2636.7,44.0078]
[1727158591741,1.23,2636.8,2636.7,44.38708]
[1727158597157,0.99408392,2637.1,2637.0,0.37923]
[1727158597449,1.74878392,2637.4,2637.2,0.3792]
[1727158597649,0.7547,2637.4,2637.2,0.3792]
[1727158597837,0.7547,2637.4,2637.3,4.3742416]
[1727158598044,5.07608392,2637.5,2637.3,4.3742416]
[1727158598243,1.491446,2637.6,2637.5,0.37916]
[1727158598244,2.13858392,2637.6,2637.5,0.37916]
[1727158598443,0.3881,2637.6,2637.4,0.77557]
[1727158601544,0.3881,2637.6,2637.5,0.37916]
[1727158602645,1.36068392,2637.8,2637.5,4.44558715]
[1727158602847,0.99408392,2637.7,2637.5,4.44558715]
[1727158603046,0.3666,2637.8,2637.5,4.44558715]
[1727158603047,1.36068392,2637.8,2637.5,4.44558715]
[1727158603242,0.99408392,2637.7,2637.5,4.44558715]
[1727158603450,0.99408392,2637.7,2637.6,40.8]
[1727158603750,1.23,2637.7,2637.6,40.8]
[1727158603949,1.23,2637.7,2637.5,0.37916]
[1727158603950,2.22408392,2637.7,2637.5,0.37916]
[1727158604344,2.22408392,2637.7,2637.6,3.95506377]
[1727158605749,1.23,2637.7,2637.6,3.95506377]
[1727158606143,2.22408392,2637.7,2637.6,3.95506377]
[1727158606545,1.23,2637.7,2637.6,3.95506377]
[1727158610557,2.22408392,2637.7,2637.4,0.77557]
[1727158610756,1.23,2637.5,2637.4,0.77557]
[1727158610957,1.23,2637.5,2637.4,41.57557]
[1727158611258,1.36068392,2637.8,2637.6,0.37914]
[1727158611448,0.99408392,2637.9,2637.8,0.37912]
[1727158611652,1.74358392,2638.3,2637.8,1.23]
[1727158611850,0.7495,2638.3,2638.2,0.37906]
[1727158612166,1.37068392,2638.4,2638.3,0.37905]
[1727158612461,0.3766,2638.4,2638.3,4.35965066]
[1727158613055,0.3766,2638.4,2638.2,43.654]
[1727158613056,1.74971392,2638.4,2638.2,43.654]
[1727158613252,1.23,2638.3,2638.2,43.654]
[1727158613447,1.23,2638.3,2638.2,40.8]
[1727158614354,1.23,2638.3,2638.1,2.854]
[1727158614655,0.7686,2638.2,2638.1,2.854]
[1727158616160,0.7686,2638.2,2638.0,0.74188]
[1727158616354,0.7686,2638.2,2638.1,2.854]
[1727158617357,0.7686,2638.2,2638.0,0.3628]
[1727158617955,0.7686,2638.2,2638.0,3.2168]
[1727158619866,0.7686,2638.2,2637.8,40.8]
[1727158620065,0.7686,2638.2,2637.9,0.7633]
[1727158620265,0.7686,2638.2,2637.9,5.11820847]
[1727158621067,1.23,2638.1,2637.9,7.59310847]
[1727158621367,0.3868,2638.0,2637.9,4.73910847]
[1727158622759,0.3868,2638.0,2637.9,5.11820847]
[1727158622953,0.3868,2638.0,2637.9,4.73910847]
[1727158623561,0.3868,2638.0,2637.9,5.11820847]
[1727158623765,0.3868,2638.0,2637.9,4.73910847]
[1727158625065,0.3868,2638.0,2637.9,5.11820847]
[1727158625270,0.3868,2638.0,2637.9,4.73910847]
[1727158625470,0.3868,2638.0,2637.9,5.11820847]
[1727158626170,0.7686,2638.2,2637.9,5.11820847]
[1727158626355,0.7686,2638.2,2637.9,7.97220847]
[1727158627566,0.7686,2638.2,2638.0,0.37909]
[1727158627870,1.23,2638.6,2638.3,0.37904]
[1727158628076,1.9925,2638.6,2638.4,0.3969]
[1727158628263,0.7625,2638.6,2638.4,5.09527298]
[1727158628459,3.2078,2638.9,2638.4,7.57024298]
[1727158628664,3.9703,2638.9,2638.6,0.379]
[1727158628867,3.9703,2638.9,2638.5,0.37901]
[1727158629065,0.7625,2638.9,2638.7,4.31934298]
[1727158629266,1.9925,2638.9,2638.6,4.78353731]
[1727158629476,1.9925,2638.9,2638.6,0.7661]
[1727158629773,1.9925,2638.9,2638.7,4.21422353]
[1727158632170,2.37146,2638.9,2638.7,4.21422353]
[1727158632370,1.9925,2638.9,2638.8,40.8]
[1727158635362,0.99408392,2639.4,2638.8,45.8196]
[1727158635567,1.23,2639.4,2639.2,0.37891]
[1727158635768,1.23,2639.4,2639.3,0.3884]
[1727158636567,4.3521,2639.5,2639.3,0.3884]
[1727158636765,1.1443,2639.5,2639.3,0.3884]
[1727158636965,1.1443,2639.5,2639.4,0.37889]
[1727158637173,1.23,2639.6,2639.4,4.34013902]
[1727158639064,1.60886,2639.6,2639.4,4.34013902]
[1727158639567,1.23,2639.6,2639.4,4.34013902]
[1727158639967,1.60887,2639.5,2639.4,4.34013902]
[1727158640770,1.23,2639.5,2639.4,4.34013902]
[1727158641078,1.60887,2639.5,2639.4,4.34013902]
[1727158641270,1.23,2639.5,2639.4,4.34013902]
[1727158644070,1.60887,2639.5,2639.4,4.34013902]
[1727158654079,1.60887,2639.5,2639.1,3.5865]
[1727158654080,5.0188,2639.5,2639.1,3.5865]
[1727158654378,0.37888,2639.5,2639.2,0.37891]
[1727158654580,1.19408392,2640.0,2639.4,3.2078]
[1727158654781,0.2,2640.0,2639.9,1.60882]
[1727158655281,0.2,2640.0,2639.9,50.53137928]
[1727158655779,0.2,2640.0,2639.9,56.53137928]
[1727158656276,0.2,2640.0,2639.9,48.92255928]
[1727158656479,0.2,2640.0,2639.9,49.30615928]
[1727158656683,0.2,2640.0,2639.9,49.68497928]
[1727158659685,0.2,2640.0,2639.9,45.89697928]
[1727158659887,0.2,2640.0,2639.9,49.68497928]
[1727158660183,0.2,2640.0,2639.9,4.71815928]
[1727158660581,0.5788,2640.0,2639.9,4.71815928]
[1727158660780,0.5981,2640.0,2639.9,4.71815928]
[1727158661286,0.2,2640.0,2639.9,5.09697928]
[1727158662684,0.2,2640.0,2639.9,11.73597928]
[1727158665077,0.2,2640.0,2639.9,12.12877928]
[1727158665380,0.2,2640.0,2639.9,8.34077928]
[1727158666489,0.2,2640.0,2639.9,7.94797928]
[1727158666880,0.2,2640.0,2639.9,7.56915928]
[1727158667087,0.2,2640.0,2639.9,4.71815928]
[1727158667888,0.2,2640.0,2639.9,5.09697928]
[1727158668087,0.2,2640.0,2639.9,4.71815928]
[1727158668884,0.5788,2640.0,2639.9,4.71815928]
[1727158669083,0.2,2640.0,2639.9,4.71815928]
[1727158670195,0.5788,2640.0,2639.9,4.71815928]
[1727158670396,0.5788,2640.0,2639.7,6.43764]
[1727158670397,1.3561,2640.0,2639.7,6.43764]
[1727158670590,0.3721,2639.9,2639.7,6.83654]
[1727158670785,0.3721,2639.9,2639.8,4.65773876]
[1727158671898,0.3721,2639.9,2639.8,4.27890876]
[1727158672097,0.3721,2639.9,2639.8,4.65773876]
[1727158672991,0.9773,2640.0,2639.8,4.65773876]
[1727158674892,0.9773,2640.0,2639.9,0.37882]
[1727158675192,0.9773,2640.0,2639.8,4.64040876]
[1727158675394,0.9773,2640.0,2639.9,0.37882]
[1727158675595,0.9773,2640.0,2639.8,5.01922876]
[1727158675889,0.2,2640.0,2639.9,4.43746435]
[1727158676287,0.2,2640.0,2639.9,4.05864435]
[1727158676897,0.2,2640.0,2639.9,4.43746435]
[1727158677296,0.2,2640.0,2639.9,8.22546435]
[1727158677693,0.2,2640.0,2639.9,11.43326435]
[1727158680293,0.2,2640.0,2639.9,14.29326435]
[1727158682021,0.2,2640.0,2639.9,10.50526435]
[1727158686318,0.2,2640.0,2639.9,14.29326435]
[1727158686828,0.3751,2640.4,2640.3,0.37876]
[1727158687320,0.99408392,2640.9,2640.3,4.14341953]
[1727158687513,1.1439,2640.6,2640.4,3.62804]
[1727158687922,1.1439,2640.6,2640.5,4.37470067]
[1727158688309,1.1439,2640.6,2640.5,4.75343067]
[1727158689425,1.1439,2640.6,2640.5,4.37470067]
[1727158690121,0.99408392,2641.2,2640.5,20.02970067]
[1727158690321,1.54874,2641.2,2640.7,0.37869]
[1727158690515,2.16418392,2641.2,2640.8,43.659]
[1727158690712,0.99408392,2641.1,2640.8,48.05705493]
[1727158690919,1.1701,2641.1,2640.8,47.67837493]
[1727158691121,1.54875,2641.1,2640.9,0.3606]
[1727158691319,1.54875,2641.1,2640.8,44.81937493]
[1727158691320,0.37866,2641.0,2640.8,44.81937493]
[1727158691624,4.82418392,2641.1,2640.8,44.81937493]
[1727158691826,5.20282392,2641.1,2640.8,44.81937493]
[1727158692025,4.82418392,2641.1,2640.8,44.81937493]
[1727158692420,5.20283392,2641.1,2640.8,44.81937493]
[1727158692621,0.37866,2641.0,2640.8,44.81937493]
[1727158692816,4.82418392,2641.1,2640.8,45.19806493]
[1727158693128,2.16418392,2641.1,2641.0,0.37866]
[1727158693325,1.1701,2641.1,2640.9,0.37867]
[1727158693525,1.1701,2641.1,2641.0,4.48608373]
[1727158694024,6.86188392,2641.3,2641.0,0.37866]
[1727158694224,7.98078392,2641.3,2641.0,4.48608373]